fUST/lending_fUST_20240613
["ID","MTS","AMOUNT","RATE_DAILY","PERIOD"]
[329299467,1718224251841,-3166.61,0.00016986,2]
[329299469,1718224251853,-2746.57,0.00016986,2]
[329299471,1718224251869,-500.0,0.00016986,2]
[329299473,1718224251887,-500.0,0.00016986,2]
[329299476,1718224251902,-577.08,0.00016986,2]
[329299478,1718224251917,-1160.36,0.00016986,2]
[329299480,1718224251938,-500.0,0.00016986,2]
[329299482,1718224251958,-500.0,0.00016986,2]
[329299484,1718224251972,-420.0,0.00017159,2]
[329299486,1718224251986,-1390.15227113,0.0001716,2]
[329299489,1718224252009,-500.0,0.0001726,2]
[329299491,1718224252021,-500.0,0.0001726,2]
[329299492,1718224252031,-500.0,0.0001726,2]
[329299494,1718224252043,-500.0,0.0001726,2]
[329299495,1718224252057,-561.76,0.0001726,2]
[329299496,1718224252067,-500.0,0.0001726,2]
[329299497,1718224252080,-427.74037649,0.0001726,2]
[329299498,1718224252100,-558.21,0.0001726,2]
[329299499,1718224252112,-500.0,0.0001726,2]
[329299500,1718224252123,-500.0,0.0001726,2]
[329299501,1718224252150,-152.00988186,0.0001726,2]
[329299502,1718224252168,-500.0,0.0001726,2]
[329299503,1718224252180,-500.0,0.0001726,2]
[329299504,1718224252197,-295.05,0.0001726,2]
[329299505,1718224252208,-451.26061929,0.0001726,2]
[329299506,1718224252228,-500.0,0.0001726,2]
[329299507,1718224252269,-591.02,0.0001726,2]
[329299508,1718224252282,-880.66,0.0001726,2]
[329299509,1718224252298,-500.0,0.0001726,2]
[329299510,1718224252313,-201.01,0.0001726,2]
[329299511,1718224252334,-735.95,0.0001726,2]
[329299512,1718224252352,-350.79465647,0.0001726,2]
[329299513,1718224252363,-500.0,0.0001726,2]
[329299514,1718224252389,-500.0,0.0001726,2]
[329299515,1718224252399,-500.0,0.0001726,2]
[329299516,1718224252417,-154.1118477,0.0001726,2]
[329299517,1718224252427,-563.86,0.0001726,2]
[329299518,1718224252440,-500.0,0.0001726,2]
[329299519,1718224252461,-500.0,0.0001726,2]
[329299520,1718224252474,-554.54,0.0001726,2]
[329299521,1718224252485,-708.81,0.0001726,2]
[329299522,1718224252496,-500.0,0.0001726,2]
[329299523,1718224252506,-500.0,0.0001726,2]
[329299524,1718224252516,-500.0,0.0001726,2]
[329299525,1718224252526,-500.0,0.0001726,2]
[329299526,1718224252537,-4994.53,0.0001726,2]
[329299527,1718224252547,-500.0,0.0001726,2]
[329299528,1718224252559,-500.0,0.0001726,2]
[329299529,1718224252574,-3709.65,0.0001726,2]
[329299530,1718224252585,-1469.77,0.0001726,2]
[329299531,1718224252597,-500.0,0.0001726,2]
[329299532,1718224252610,-2025.46,0.0001726,2]
[329299533,1718224252629,-392.75061859,0.0001726,2]
[329299534,1718224252648,-500.0,0.0001726,2]
[329299535,1718224252660,-609.82,0.0001726,2]
[329299536,1718224252674,-581.95,0.0001726,2]
[329299537,1718224252691,-4424.57,0.0001726,2]
[329299538,1718224252709,-500.0,0.0001726,2]
[329299539,1718224252720,-500.0,0.0001726,2]
[329299540,1718224252738,-500.0,0.0001726,2]
[329299541,1718224252752,-500.0,0.0001726,2]
[329299542,1718224252765,-500.0,0.0001726,2]
[329299543,1718224252785,-909.05,0.0001726,2]
[329299544,1718224252800,-500.0,0.0001726,2]
[329299545,1718224252818,-500.0,0.0001726,2]
[329299546,1718224252832,-1365.68,0.0001726,2]
[329299547,1718224252845,-1107.96,0.0001726,2]
[329299548,1718224252861,-500.0,0.0001726,2]
[329299549,1718224252875,-500.0,0.0001726,2]
[329299551,1718224252891,-500.0,0.0001726,2]
[329299553,1718224252920,-500.0,0.0001726,2]
[329299555,1718224252942,-500.0,0.0001726,2]
[329299557,1718224252960,-500.0,0.0001726,2]
[329299559,1718224252978,-1028.13,0.0001726,2]
[329299561,1718224252992,-616.5,0.0001726,2]
[329299562,1718224253005,-601.63,0.0001726,2]
[329299564,1718224253022,-500.0,0.0001726,2]
[329299566,1718224253041,-3166.61,0.0001726,2]
[329299568,1718224253054,-2746.57,0.0001726,2]
[329299570,1718224253066,-186.91255128,0.0001726,2]
[329299571,1718224253083,-577.08,0.0001726,2]
[329299572,1718224253099,-1160.36,0.0001726,2]
[329299573,1718224253128,-533.99067711,0.0001726,2]
[329299574,1718224253143,-500.0,0.00017534,2]
[329299575,1718224253166,-397.42854314,0.00017534,2]
[329299576,1718224253187,-500.0,0.00017534,2]
[329299577,1718224253219,-561.76,0.00017534,2]
[329299578,1718224253238,-500.0,0.00017534,2]
[329299579,1718224253253,-558.21,0.00017534,2]
[329299580,1718224253265,-500.0,0.00017534,2]
[329299581,1718224253277,-500.0,0.00017534,2]
[329299582,1718224253288,-500.0,0.00017534,2]
[329299583,1718224253302,-500.0,0.00017534,2]
[329299584,1718224253314,-500.0,0.00017534,2]
[329299585,1718224253326,-591.02,0.00017534,2]
[329299586,1718224253337,-880.66,0.00017534,2]
[329299587,1718224253354,-500.0,0.00017534,2]
[329299588,1718224253365,-735.95,0.00017534,2]
[329299589,1718224253376,-425.01,0.00017534,2]
[329299590,1718224253387,-500.0,0.00017534,2]
[329299591,1718224253402,-563.86,0.00017534,2]
[329299592,1718224253413,-500.0,0.00017534,2]
[329299593,1718224253425,-554.54,0.00017534,2]
[329299594,1718224253436,-708.81,0.00017534,2]
[329299595,1718224253448,-588.47,0.00017534,2]
[329299596,1718224253460,-500.0,0.00017534,2]
[329299597,1718224253474,-500.0,0.00017534,2]
[329299599,1718224253501,-500.0,0.00017534,2]
[329299601,1718224253526,-4994.53,0.00017534,2]
[329299602,1718224253537,-500.0,0.00017534,2]
[329299603,1718224253557,-3709.65,0.00017534,2]
[329299604,1718224253568,-1469.77,0.00017534,2]
[329299605,1718224253579,-500.0,0.00017534,2]
[329299606,1718224253596,-2025.46,0.00017534,2]
[329299607,1718224253614,-500.0,0.00017534,2]
[329299608,1718224253628,-609.82,0.00017534,2]
[329299609,1718224253647,-581.95,0.00017534,2]
[329299610,1718224253665,-4424.57,0.00017534,2]
[329299611,1718224253681,-500.0,0.00017534,2]
[329299612,1718224253696,-500.0,0.00017534,2]
[329299613,1718224253707,-500.0,0.00017534,2]
[329299614,1718224253720,-500.0,0.00017534,2]
[329299615,1718224253742,-909.05,0.00017534,2]
[329299616,1718224253754,-500.0,0.00017534,2]
[329299617,1718224253780,-500.0,0.00017534,2]
[329299618,1718224253798,-1365.68,0.00017534,2]
[329299619,1718224253811,-1107.96,0.00017534,2]
[329299620,1718224253825,-500.0,0.00017534,2]
[329299621,1718224253838,-500.0,0.00017534,2]
[329299622,1718224253854,-500.0,0.00017534,2]
[329299623,1718224253865,-275.48295176,0.00017534,2]
[329299624,1718224253896,-500.0,0.00017534,2]
[329299625,1718224253912,-500.0,0.00017534,2]
[329299626,1718224253924,-1028.13,0.00017534,2]
[329299627,1718224253944,-616.5,0.00017534,2]
[329299628,1718224253966,-601.63,0.00017534,2]
[329299629,1718224253979,-500.0,0.00017534,2]
[329299630,1718224254001,-3166.61,0.00017534,2]
[329299631,1718224254019,-2746.57,0.00017534,2]
[329299632,1718224254037,-577.08,0.00017534,2]
[329299633,1718224254049,-1160.36,0.00017534,2]
[329299634,1718224254062,-474.8656888,0.00017534,2]
[329299635,1718224254079,-306.0,0.00017684,2]
[329299636,1718224254093,-153.0,0.00017684,2]
[329299637,1718224254116,-153.0,0.00017684,2]
[329299638,1718224254139,-153.0,0.00017684,2]
[329299639,1718224254153,-292.5693121,0.00017725,2]
[329299640,1718224254194,-292.5693121,0.00017725,2]
[329299641,1718224254230,-292.5693121,0.00017725,2]
[329299642,1718224254261,-292.5693121,0.00017725,2]
[329299643,1718224254277,-292.5693121,0.00017725,2]
[329299644,1718224254291,-292.5693121,0.00017725,2]
[329299645,1718224254305,-292.5693121,0.00017725,2]
[329299646,1718224254315,-585.1386242,0.00017725,2]
[329299647,1718224254335,-292.5693121,0.00017725,2]
[329299648,1718224254353,-292.5693121,0.00017725,2]
[329299649,1718224254365,-292.5693121,0.00017725,2]
[329299650,1718224254385,-292.5693121,0.00017725,2]
[329299651,1718224254401,-292.5693121,0.00017725,2]
[329299652,1718224254412,-500.0,0.00017808,2]
[329299653,1718224254428,-500.0,0.00017808,2]
[329299654,1718224254444,-561.76,0.00017808,2]
[329299655,1718224254462,-500.0,0.00017808,2]
[329299656,1718224254476,-558.21,0.00017808,2]
[329299657,1718224254502,-500.0,0.00017808,2]
[329299658,1718224254522,-294.77567397,0.00017808,2]
[329299659,1718224254540,-500.0,0.00017808,2]
[329299660,1718224254561,-500.0,0.00017808,2]
[329299661,1718224254578,-500.0,0.00017808,2]
[329299662,1718224254597,-591.02,0.00017808,2]
[329299663,1718224254614,-880.66,0.00017808,2]
[329299664,1718224254635,-500.0,0.00017808,2]
[329299665,1718224254649,-735.95,0.00017808,2]
[329299666,1718224254662,-500.0,0.00017808,2]
[329299667,1718224254676,-563.86,0.00017808,2]
[329299668,1718224254691,-500.0,0.00017808,2]
[329299669,1718224254704,-554.54,0.00017808,2]
[329299670,1718224254718,-708.81,0.00017808,2]
[329299671,1718224254729,-500.0,0.00017808,2]
[329299672,1718224254746,-500.0,0.00017808,2]
[329299673,1718224254762,-500.0,0.00017808,2]
[329299674,1718224254781,-4994.53,0.00017808,2]
[329299675,1718224254798,-628.83503317,0.00017808,2]
[329299676,1718224254818,-3709.65,0.00017808,2]
[329299677,1718224254835,-1469.77,0.00017808,2]
[329299678,1718224254860,-2025.46,0.00017808,2]
[329299679,1718224254884,-500.0,0.00017808,2]
[329299680,1718224254903,-609.82,0.00017808,2]
[329299681,1718224254929,-581.95,0.00017808,2]
[329299682,1718224254950,-4424.57,0.00017808,2]
[329299683,1718224254979,-500.0,0.00017808,2]
[329299684,1718224254996,-500.0,0.00017808,2]
[329299685,1718224255008,-500.0,0.00017808,2]
[329299686,1718224255036,-500.0,0.00017808,2]
[329299687,1718224255048,-909.05,0.00017808,2]
[329299688,1718224255067,-500.0,0.00017808,2]
[329299689,1718224255089,-456.27127201,0.00017808,2]
[329299690,1718224255110,-1107.96,0.00017808,2]
[329299691,1718224255124,-500.0,0.00017808,2]
[329299692,1718224255139,-500.0,0.00017808,2]
[329299693,1718224255156,-500.0,0.00017808,2]
[329299694,1718224255168,-500.0,0.00017808,2]
[329299695,1718224255188,-1028.13,0.00017808,2]
[329299696,1718224255201,-616.5,0.00017808,2]
[329299697,1718224255224,-601.63,0.00017808,2]
[329299698,1718224255257,-500.0,0.00017808,2]
[329299699,1718224255279,-3166.61,0.00017808,2]
[329299700,1718224255291,-2746.57,0.00017808,2]
[329299701,1718224255321,-577.08,0.00017808,2]
[329299702,1718224255339,-1160.36,0.00017808,2]
[329299703,1718224255353,-5281.92082876,0.00017813,2]
[329299704,1718224255375,-24456.92852184,0.000179,2]
[329299705,1718224255387,-3258.66257668,0.00018,13]
[329299706,1718224255413,-2765.44251206,0.00018,2]
[329299707,1718224255428,-876.82850055,0.00018,2]
[329299708,1718224255446,-1355.61945113,0.00018,2]
[329299709,1718224255461,-476.69963654,0.00018,2]
[329299710,1718224255472,-61219.30517135,0.00018,2]
[329299711,1718224255486,-640.52180785,0.00018018,2]
[329299712,1718224255498,-151.0,0.00018076,2]
[329299713,1718224255509,-500.0,0.00018082,2]
[329299714,1718224255520,-500.0,0.00018082,2]
[329299715,1718224255532,-561.76,0.00018082,2]
[329299716,1718224255547,-500.0,0.00018082,2]
[329299717,1718224255574,-558.21,0.00018082,2]
[329299718,1718224255585,-500.0,0.00018082,2]
[329299719,1718224255600,-500.0,0.00018082,2]
[329299720,1718224255612,-500.0,0.00018082,2]
[329299721,1718224255622,-591.02,0.00018082,2]
[329299722,1718224255633,-880.66,0.00018082,2]
[329299723,1718224255645,-500.0,0.00018082,2]
[329299724,1718224255656,-735.95,0.00018082,2]
[329299725,1718224255677,-500.0,0.00018082,2]
[329299726,1718224255693,-563.86,0.00018082,2]
[329299727,1718224255710,-500.0,0.00018082,2]
[329299728,1718224255737,-554.54,0.00018082,2]
[329299729,1718224255758,-708.81,0.00018082,2]
[329299730,1718224255782,-500.0,0.00018082,2]
[329299731,1718224255794,-500.0,0.00018082,2]
[329299732,1718224255808,-500.0,0.00018082,2]
[329299733,1718224255820,-4994.53,0.00018082,2]
[329299734,1718224255830,-3709.65,0.00018082,2]
[329299735,1718224255840,-1469.77,0.00018082,2]
[329299736,1718224255850,-69.38103393,0.00018082,2]
[329299737,1718224256186,-5820.15729044,0.00016436,2]
[329299738,1718224256204,-500.0,0.00016438,2]
[329299739,1718224256222,-500.0,0.00016438,2]
[329299740,1718224256262,-593.6,0.00016712,2]
[329299741,1718224256273,-500.0,0.00016712,2]
[329299742,1718224256284,-1956.07896607,0.00018082,2]
[329299743,1718224256296,-500.0,0.00018082,2]
[329299744,1718224256322,-609.82,0.00018082,2]
[329299745,1718224256338,-581.95,0.00018082,2]
[329299746,1718224256350,-4424.57,0.00018082,2]
[329299747,1718224256493,-500.0,0.00018082,2]
[329299748,1718224256508,-500.0,0.00018082,2]
[329299749,1718224256520,-500.0,0.00018082,2]
[329299750,1718224256530,-909.05,0.00018082,2]
[329299751,1718224256541,-500.0,0.00018082,2]
[329299752,1718224256553,-1107.96,0.00018082,2]
[329299753,1718224256567,-500.0,0.00018082,2]
[329299754,1718224256580,-500.0,0.00018082,2]
[329299755,1718224256598,-500.0,0.00018082,2]
[329299756,1718224256614,-500.0,0.00018082,2]
[329299757,1718224256628,-1028.13,0.00018082,2]
[329299758,1718224256640,-616.5,0.00018082,2]
[329299759,1718224256655,-601.63,0.00018082,2]
[329299760,1718224256670,-500.0,0.00018082,2]
[329299761,1718224256685,-3166.61,0.00018082,2]
[329299762,1718224256710,-2746.57,0.00018082,2]
[329299763,1718224256722,-577.08,0.00018082,2]
[329299764,1718224256737,-1160.36,0.00018082,2]
[329299765,1718224256757,-289384.0,0.00018256,2]
[329299766,1718224256770,-151.0,0.00018256,2]
[329299767,1718224256782,-151.0,0.00018256,2]
[329299768,1718224256793,-151.0,0.00018256,2]
[329299769,1718224256809,-151.0,0.00018256,2]
[329299770,1718224256825,-151.0,0.00018256,2]
[329299771,1718224256840,-151.0,0.00018256,2]
[329299772,1718224256855,-151.0,0.00018256,2]
[329299773,1718224256867,-151.0,0.00018256,2]
[329299774,1718224256878,-151.0,0.00018256,2]
[329299775,1718224256889,-151.0,0.00018256,2]
[329299776,1718224256915,-151.0,0.00018256,2]
[329299777,1718224256926,-151.0,0.00018256,2]
[329299778,1718224256944,-151.0,0.00018256,2]
[329299779,1718224256957,-151.0,0.00018256,2]
[329299780,1718224256971,-151.0,0.00018256,2]
[329299781,1718224256985,-168.674323,0.00018256,2]
[329299782,1718224256999,-168.674323,0.00018256,2]
[329299783,1718224257012,-239.182518,0.00018256,2]
[329299784,1718224257025,-239.182518,0.00018256,2]
[329299785,1718224257053,-151.0,0.00018256,2]
[329299786,1718224257066,-151.0,0.00018256,2]
[329299787,1718224257078,-151.0,0.0001829,2]
[329299788,1718224257090,-153.0,0.00018339,2]
[329299789,1718224257103,-153.0,0.00018339,2]
[329299790,1718224257114,-153.0,0.00018339,2]
[329299791,1718224257125,-153.0,0.00018339,2]
[329299792,1718224257137,-153.0,0.00018346,2]
[329299793,1718224257148,-304.6693,0.00018354,2]
[329299794,1718224257160,-500.0,0.00018356,2]
[329299795,1718224257173,-500.0,0.00018356,2]
[329299796,1718224257184,-558.21,0.00018356,2]
[329299797,1718224257196,-500.0,0.00018356,2]
[329299798,1718224257209,-631.37772711,0.00018356,2]
[329299799,1718224257227,-500.0,0.00018356,2]
[329299800,1718224257255,-591.02,0.00018356,2]
[329299801,1718224257268,-880.66,0.00018356,2]
[329299802,1718224257294,-500.0,0.00018356,2]
[329299803,1718224257305,-735.95,0.00018356,2]
[329299804,1718224257317,-614.55256211,0.00018356,2]
[329299805,1718224257331,-563.86,0.00018356,2]
[329299806,1718224257342,-500.0,0.00018356,2]
[329299807,1718224257353,-554.54,0.00018356,2]
[329299808,1718224257372,-708.81,0.00018356,2]
[329299809,1718224257383,-500.76,0.00018356,2]
[329299810,1718224257394,-500.0,0.00018356,2]
[329299811,1718224257405,-500.0,0.00018356,2]
[329299812,1718224257415,-4994.53,0.00018356,2]
[329299813,1718224257428,-3709.65,0.00018356,2]
[329299814,1718224257439,-1469.77,0.00018356,2]
[329299815,1718224257454,-2025.46,0.00018356,2]
[329299816,1718224257465,-328.51320295,0.00018356,2]
[329299817,1718224257476,-609.82,0.00018356,2]
[329299818,1718224257498,-581.95,0.00018356,2]
[329299819,1718224257520,-4424.57,0.00018356,2]
[329299820,1718224257534,-500.0,0.00018356,2]
[329299821,1718224257551,-500.0,0.00018356,2]
[329299822,1718224257564,-500.0,0.00018356,2]
[329299823,1718224257575,-909.05,0.00018356,2]
[329299824,1718224257585,-500.0,0.00018356,2]
[329299825,1718224257596,-500.0,0.00018356,2]
[329299826,1718224257608,-1107.96,0.00018356,2]
[329299827,1718224257620,-500.0,0.00018356,2]
[329299828,1718224257631,-500.0,0.00018356,2]
[329299829,1718224257643,-1028.13,0.00018356,2]
[329299830,1718224257654,-616.5,0.00018356,2]
[329299831,1718224257668,-601.63,0.00018356,2]
[329299832,1718224257680,-500.0,0.00018356,2]
[329299833,1718224257692,-3166.61,0.00018356,2]
[329299834,1718224257707,-2746.57,0.00018356,2]
[329299835,1718224257723,-577.08,0.00018356,2]
[329299836,1718224257734,-1160.36,0.00018356,2]
[329299837,1718224257753,-151.0,0.00018503,2]
[329299838,1718224257790,-292.5693121,0.00018547,2]
[329299839,1718224257810,-292.5693121,0.00018547,2]
[329299840,1718224257823,-292.5693121,0.00018547,2]
[329299841,1718224257856,-292.5693121,0.00018547,2]
[329299842,1718224257879,-292.5693121,0.00018547,2]
[329299843,1718224257890,-287.200125,0.00018547,2]
[329299844,1718224257904,-292.5693121,0.00018547,2]
[329299845,1718224257915,-166.666666,0.00018575,2]
[329299846,1718224257937,-153.0,0.00018626,2]
[329299847,1718224257949,-153.0,0.00018626,2]
[329299848,1718224257960,-153.0,0.00018626,2]
[329299849,1718224257983,-314.7971623,0.00018626,2]
[329299850,1718224257999,-500.0,0.0001863,2]
[329299851,1718224258033,-500.0,0.0001863,2]
[329299852,1718224258049,-558.21,0.0001863,2]
[329299853,1718224258067,-500.0,0.0001863,2]
[329299854,1718224258096,-500.0,0.0001863,2]
[329299855,1718224258136,-591.02,0.0001863,2]
[329299856,1718224258166,-880.66,0.0001863,2]
[329299857,1718224258197,-500.0,0.0001863,2]
[329299858,1718224258208,-735.95,0.0001863,2]
[329299859,1718224258227,-563.86,0.0001863,2]
[329299860,1718224258281,-500.0,0.0001863,2]
[329299861,1718224258312,-554.54,0.0001863,2]
[329299862,1718224258327,-708.81,0.0001863,2]
[329299863,1718224258341,-500.0,0.0001863,2]
[329299864,1718224258356,-500.0,0.0001863,2]
[329299865,1718224258367,-4994.53,0.0001863,2]
[329299866,1718224258380,-3709.65,0.0001863,2]
[329299867,1718224258393,-1469.77,0.0001863,2]
[329299868,1718224258403,-2025.46,0.0001863,2]
[329299869,1718224258417,-609.82,0.0001863,2]
[329299870,1718224258431,-581.95,0.0001863,2]
[329299871,1718224258442,-4424.57,0.0001863,2]
[329299872,1718224258454,-395.55217758,0.0001863,2]
[329299873,1718224258467,-500.0,0.0001863,2]
[329299874,1718224258478,-500.0,0.0001863,2]
[329299875,1718224258493,-909.05,0.0001863,2]
[329299876,1718224258531,-500.0,0.0001863,2]
[329299877,1718224258548,-1107.96,0.0001863,2]
[329299878,1718224258565,-500.0,0.0001863,2]
[329299879,1718224258577,-500.0,0.0001863,2]
[329299880,1718224258589,-500.0,0.0001863,2]
[329299881,1718224258600,-1028.13,0.0001863,2]
[329299882,1718224258611,-616.5,0.0001863,2]
[329299883,1718224258623,-601.63,0.0001863,2]
[329299884,1718224258635,-500.0,0.0001863,2]
[329299885,1718224258649,-3166.61,0.0001863,2]
[329299886,1718224258661,-2746.57,0.0001863,2]
[329299887,1718224258673,-577.08,0.0001863,2]
[329299888,1718224258684,-1160.36,0.0001863,2]
[329299889,1718224258696,-250.0,0.0001863,2]
[329299890,1718224258719,-153.0,0.00018643,2]
[329299891,1718224258754,-151.0,0.00018717,2]
[329299892,1718224258774,-587.0,0.00018875,2]
[329299893,1718224258790,-155.0,0.0001888,2]
[329299894,1718224258802,-1802.22342746,0.000189,2]
[329299895,1718224258818,-4926.41078249,0.000189,2]
[329299896,1718224258835,-500.0,0.00018904,2]
[329299897,1718224258853,-500.0,0.00018904,2]
[329299898,1718224258869,-558.21,0.00018904,2]
[329299899,1718224258880,-500.0,0.00018904,2]
[329299900,1718224258901,-151.0,0.00018904,2]
[329299901,1718224258913,-500.0,0.00018904,2]
[329299902,1718224258929,-151.0,0.00018904,2]
[329299903,1718224258947,-591.02,0.00018904,2]
[329299904,1718224258957,-151.0,0.00018904,2]
[329299905,1718224258967,-880.66,0.00018904,2]
[329299906,1718224258979,-500.0,0.00018904,2]
[329299907,1718224258992,-151.0,0.00018904,2]
[329299908,1718224259002,-156.284908,0.00018904,2]
[329299909,1718224259014,-735.95,0.00018904,2]
[329299910,1718224259027,-563.86,0.00018904,2]
[329299911,1718224259037,-500.0,0.00018904,2]
[329299912,1718224259048,-554.54,0.00018904,2]
[329299913,1718224259062,-708.81,0.00018904,2]
[329299914,1718224259076,-500.0,0.00018904,2]
[329299915,1718224259096,-500.0,0.00018904,2]
[329299916,1718224259106,-4994.53,0.00018904,2]
[329299917,1718224259123,-3709.65,0.00018904,2]
[329299918,1718224259154,-1469.77,0.00018904,2]
[329299919,1718224259166,-2025.46,0.00018904,2]
[329299920,1718224259177,-609.82,0.00018904,2]
[329299921,1718224259187,-581.95,0.00018904,2]
[329299922,1718224259204,-4424.57,0.00018904,2]
[329299923,1718224259216,-500.0,0.00018904,2]
[329299924,1718224259228,-500.0,0.00018904,2]
[329299925,1718224259260,-145.76568487,0.00018904,2]
[329299926,1718224259285,-763.28431513,0.00018904,2]
[329299927,1718224259300,-327.07969053,0.00018904,2]
[329299928,1718224259315,-172.92030947,0.00018904,2]
[329299929,1718224259334,-500.0,0.00018904,2]
[329299930,1718224259346,-1035.47805244,0.00018904,2]
[329299931,1718224259360,-72.48194756,0.00018904,2]
[329299932,1718224259381,-500.0,0.00018904,2]
[329299933,1718224259398,-239.182518,0.00018904,2]
[329299934,1718224259410,-500.0,0.00018904,2]
[329299935,1718224259428,-239.182518,0.00018904,2]
[329299936,1718224259446,-151.0,0.00018904,2]
[329299937,1718224259457,-307.31900487,0.00018904,2]
[329299953,1718224611656,322.30998455,9.999e-05,2]
[329299954,1718224611704,99.54813923,9.999e-05,2]
[329299962,1718224653559,136.20563202,9.999e-05,2]
[329299963,1718224653600,322.30998455,9.999e-05,2]
[329299964,1718224653636,94.12585157,9.999e-05,2]
[329299965,1718225054634,1000.0,0.00025,60]
[329299966,1718225076170,1000.0,0.00025,60]
[329299967,1718225112276,1000.0,0.00025,60]
[329299978,1718225134545,1000.0,0.00025,60]
[329299979,1718225145375,1000.0,0.00025,60]
[329299980,1718225169090,1000.0,0.00025,60]
[329300280,1718225439595,-202.32617098,0.00016236,2]
[329300282,1718225439607,-300.0,0.00016336,2]
[329300284,1718225439622,-300.0,0.00016336,2]
[329300286,1718225439635,-10100.92220087,0.00016337,2]
[329300290,1718225439656,-222.76516151,0.00016436,2]
[329300295,1718225439700,-524.19655516,0.00016436,2]
[329300298,1718225439716,-692.26255018,0.00016436,2]
[329300301,1718225439740,-285.76830085,0.00016436,2]
[329300303,1718225439762,-286.07734322,0.00016436,2]
[329300304,1718225439777,-607.26971272,0.00016436,2]
[329300305,1718225439808,-232.26809921,0.00016436,2]
[329300306,1718225439820,-304.6693,0.00016436,2]
[329300307,1718225439835,-3815.60968285,0.00016436,2]
[329300308,1718225439851,-9592.69620331,0.00016437,2]
[329300309,1718225439870,-500.0,0.00016438,2]
[329300310,1718225439883,-500.0,0.00016438,2]
[329300311,1718225439899,-500.0,0.00016438,2]
[329300312,1718225439912,-500.0,0.00016438,2]
[329300313,1718225439941,-500.0,0.00016438,2]
[329300314,1718225439954,-500.0,0.00016438,2]
[329300315,1718225439969,-500.0,0.00016438,2]
[329300316,1718225439993,-500.0,0.00016438,2]
[329300317,1718225440013,-500.0,0.00016438,2]
[329300318,1718225440035,-500.0,0.00016438,2]
[329300319,1718225440051,-512.93,0.00016438,2]
[329300320,1718225440071,-500.0,0.00016438,2]
[329300321,1718225440091,-500.0,0.00016438,2]
[329300322,1718225440106,-343.7965023,0.00016438,2]
[329300323,1718225440131,-500.0,0.00016438,2]
[329300324,1718225440147,-500.0,0.00016438,2]
[329300325,1718225440172,-500.0,0.00016438,2]
[329300326,1718225440186,-500.0,0.00016438,2]
[329300327,1718225440206,-500.0,0.00016438,2]
[329300328,1718225440226,-500.0,0.00016438,2]
[329300329,1718225440254,-500.0,0.00016438,2]
[329300330,1718225440285,-535.66,0.00016438,4]
[329300331,1718225440299,-500.0,0.00016438,2]
[329300332,1718225440310,-500.0,0.00016438,2]
[329300333,1718225440331,-500.0,0.00016438,2]
[329300334,1718225440352,-500.0,0.00016438,2]
[329300335,1718225440364,-500.0,0.00016438,2]
[329300336,1718225440375,-500.0,0.00016438,2]
[329300337,1718225440396,-500.0,0.00016438,2]
[329300338,1718225440408,-561.53,0.00016438,2]